Cogmind - Beta 10.1 @@@ ROGUE MODE // 2020.10.27 @ 20:47:57 Player: Atherys Result: Destroyed by S-10 Pest with Light Assault Rifle Performance ------------- Evolutions (0) 0 Regions Visited (1) 200 Robots Destroyed (14) 70 Value Destroyed (166) 166 Prototype IDs (0) 0 Alien Tech Used (0) 0 Bonus (0) 0 TOTAL SCORE: 436 Bonus ------- None Cogmind --------- Core Integrity 0/250 Matter 300/300 Energy 100/100 System Corruption 0% Temperature Cool (6) Movement Core (550) Ox10 Location -10/Materials Parts ------- > --- POWER (1) -------- (None) > --- PROPULSION (2) --- (None) > --- UTILITY (2) ------ High-capacity Storage Unit > --- WEAPON (2) ------- (None) > --- INVENTORY (12) --- Medium Matter Pod (100) Improved Terrain Scanner Targeting Computer Medium Laser Mining Claw Mining Claw Peak State ------------ > --- POWER ------------ Light Ion Engine > --- PROPULSION ------- Wheel Compact Wheel > --- UTILITY ---------- Small Storage Unit Improved Terrain Scanner > --- WEAPON ----------- Medium Laser Small Laser > --- INVENTORY -------- (None) [Rating: 8] Favorites ----------- Power Light Ion Engine Engine Light Ion Engine Propulsion Compact Wheel Wheel Compact Wheel Hover Unit Hover Unit Utility Improved Terrain Scanner Device Improved Terrain Scanner Storage Small Storage Unit Weapon Medium Laser Energy Gun Medium Laser Ballistic Cannon Light Cannon Special Weapon Mining Laser Slashing Weapon Mining Claw Special Melee Weapon Datajack Build | -11 -10 ------- Run | Scr Mat Slots Evolved . | . . Power . | . . Propulsion . | . . Utility . | . . Weapon . | . . Parts Attached 17 | 7 10 Power 1 | 1 . Engine 1 | 1 . Core . | . . Reactor . | . . Propulsion 6 | 2 4 Treads . | . . Leg . | . . Wheel 3 | 2 1 Hover 3 | . 3 Flight . | . . Utility 4 | 2 2 Device 2 | 1 1 Storage 2 | 1 1 Processor . | . . Hackware . | . . Protection . | . . Artifact . | . . Weapon 6 | 2 4 Energy Gun 2 | 2 . Energy Cannon . | . . Ballistic Gun . | . . Ballistic Cannon 1 | . 1 Launcher . | . . Special Weapon 1 | . 1 Impact Weapon . | . . Slashing Weapon 1 | . 1 Piercing Weapon . | . . Special Melee Weapon 1 | . 1 Unidentified Prototypes . | . . Parts Lost 6 | . 6 Power 1 | . 1 Propulsion 2 | . 2 Utility 1 | . 1 Weapon 2 | . 2 Highest Loss Streak 6 | . 6 Average Slot Usage (%) 97 | . 97 Engine 13 | . 13 Wheel 17 | . 17 Hover 9 | . 9 Device 17 | . 17 Storage 10 | . 10 Energy Gun 14 | . 14 Ballistic Cannon 5 | . 5 Special Weapon 3 | . 3 Special Melee Weapon 3 | . 3 Naked Turns . | . . Heaviest Build 40 | 11 40 Greatest Support 32 | 26 32 Greatest Overweight (x) 13 | . 13 Average Overweight (x) . | . . Largest Inventory Capacity 12 | 6 12 Average Capacity 6 | 5 6 Most Carried 6 | 2 6 Average Carried 3 | . 4 Final Capacity 12 | 6 12 Final Carried 6 | 2 6 Class Distribution -------------------- 100% | Mutant Dominant Class ---------------- Mutant | -10/Materials Resources | -11 -10 ----------- Run | Scr Mat Matter Collected 512 | 356 156 Remotely . | . . Salvage Created 367 | 187 180 Parts 29 | 17 12 Haulers Intercepted . | . . Recyclers Shooed . | . . Parts Field Recycled . | . . Retrieved Matter . | . . Parts Self-Destructed . | . . Prevented . | . . Kills | -11 -10 ------- Run | Scr Mat Combat Hostiles Destroyed 5 | . 5 Guns 2 | . 2 Cannons 3 | . 3 Classes Destroyed 6 | 3 3 Worker 2 | 2 . Tunneler 4 | 4 . Recycler 2 | 1 1 Watcher 1 | . 1 Swarmer 3 | . 3 Grunt 2 | . 2 Best Kill Streak 7 | 7 3 Combat Bots Only 3 | . 3 Max Kills in Single Turn 2 | 2 1 Gunslinging . | . . Exploded . | . . Melee . | . . Uniques/NPCs Destroyed . | . . Combat | -11 -10 -------- Run | Scr Mat Damage Taken 727 | . 727 Core 254 | . 254 Absorbed by Shields . | . . Core Remaining (%) 100 | 100 . Volleys Fired 50 | 23 27 Largest 2 | 2 2 Hottest 100 | 90 100 Shots Fired 79 | 45 34 Gun 59 | 45 14 Cannon 16 | . 16 Launcher . | . . Special 4 | . 4 Kinetic 16 | . 16 Thermal 63 | 45 18 Explosive . | . . Electromagnetic . | . . Robot Hit Streak 7 | 4 7 Robot Miss Streak 5 | 4 5 Penetration Max . | . . Secondary Targets . | . . Shots Hit Robots 45 | 22 23 Core Hits 17 | 8 9 Critical Hits 2 | . 2 Critical Kills 1 | . 1 Critical Parts Destroyed 1 | . 1 Melee Attacks 8 | . 8 Impact . | . . Slashing 2 | . 2 Piercing . | . . Sneak Attacks . | . . Combat Hostiles . | . . Follow-up Attacks . | . . Damage Inflicted 637 | 263 374 Guns 369 | 263 106 Cannons 191 | . 191 Explosions . | . . Melee 77 | . 77 Ramming . | . . Kinetic 191 | . 191 Thermal 369 | 263 106 Explosive . | . . Electromagnetic . | . . Impact . | . . Slashing 77 | . 77 Piercing . | . . Highest Corruption . | . . Average Corruption . | . . Corruption Purged . | . . Overload Shots . | . . Overflow Damage 68 | . 68 Projectiles . | . . Explosions . | . . Melee 68 | . 68 Knockbacks 5 | . 5 Impact . | . . Kinetic 4 | . 4 Secondary 1 | . 1 Self-Inflicted Damage . | . . Shots . | . . Rammed . | . . Targets Rammed . | . . Kicked . | . . Crushed . | . . Highest Temperature 370 | 370 252 Average Temperature 134 | 159 86 Received Heat Transfer 135 | . 135 Siege Activations . | . . Robots Corrupted . | . . Combat Hostiles . | . . Parts Fried . | . . Impact Corruptions . | . . Robots Melted . | . . Combat Hostiles . | . . Parts Melted 2 | 1 1 Heat Transferred 991 | 706 285 Parts Sabotaged . | . . Parts Stolen . | . . Parts Stripped . | . . Power Chain Reactions . | . . Missiles Intercepted . | . . Alert | -11 -10 ------- Run | Scr Mat Peak Influence 178 | 35 178 Initial 22 | . 22 Average 65 | 14 78 Maximum Alert Level . | . . Low Security (%) 100 | 100 100 Level 1 . | . . Level 2 . | . . Level 3 . | . . Level 4 . | . . Level 5 . | . . High Security . | . . Max Security . | . . Squads Dispatched 1 | . 1 Investigation . | . . Extermination . | . . Reinforcement 1 | . 1 Assault . | . . Garrison . | . . Intercept . | . . Construction Impeded . | . . Haulers Reinforced . | . . Stealth | -11 -10 --------- Run | Scr Mat Distress Signals . | . . Communications Jammed . | . . Distress Signals . | . . Times Spotted 16 | . 16 Peak Tracking Total 5 | . 5 Tactical Retreats . | . . Traps | -11 -10 ------- Run | Scr Mat Traps Triggered . | . . Indirectly . | . . Trap Hack Attempts . | . . Triggered . | . . Disarmed . | . . Reprogrammed . | . . Reused . | . . Traps Extracted . | . . Installed . | . . Triggered . | . . Machines | -11 -10 ---------- Run | Scr Mat Machines Disabled 1 | . 1 Max in Single Turn 1 | . 1 Machines Sabotaged . | . . Garrisons Compromised . | . . Overloaded Fab Kills . | . . Fab Network Shutdowns . | . . Hacking | -11 -10 --------- Run | Scr Mat Machines Accessed 6 | . 6 Terminals 5 | . 5 Fabricators . | . . Repair Stations . | . . Recycling Units 1 | . 1 Scanalyzers . | . . Garrison Access . | . . Total Hacks 19 | . 19 Successful 13 | . 13 Failed 6 | . 6 Catastrophic . | . . Database Lockouts . | . . Manual 15 | . 15 Terminals 15 | . 15 Fabricators . | . . Repair Stations . | . . Recycling Units 4 | . 4 Scanalyzers . | . . Garrison Access . | . . Terminal Hacks . | . . Fabricator Hacks . | . . Repair Station Hacks . | . . Recycling Unit Hacks 4 | . 4 Report Inventory 2 | . 2 Retrieve Matter 1 | . 1 Retrieve Components 1 | . 1 Scanalyzer . | . . Garrison Access Hacks . | . . Unauthorized Hacks 9 | . 9 Terminals 9 | . 9 Assimilate 4 | . 4 Botnet 5 | . 5 Fabricators . | . . Repair Stations . | . . Recycling Units . | . . Scanalyzers . | . . Garrison Access . | . . Data Cores Recovered . | . . Used . | . . Hacking Detections 5 | . 5 Full Trace Events . | . . Feedback Events . | . . Feedback Blocked . | . . Robot Schematics Acquired . | . . Robots Built . | . . Matter . | . . Time . | . . Total Robot Build Rating . | . . Part Schematics Acquired . | . . Parts Built . | . . Matter . | . . Time . | . . Total Part Build Rating . | . . Parts Repaired . | . . Time . | . . Parts Recycled . | . . Recycled Matter . | . . Retrieved Matter . | . . Retrieved Components 2 | . 2 Parts Scanalyzed . | . . Part Schematics Acquired . | . . Parts Damaged . | . . Bothacking | -11 -10 ------------ Run | Scr Mat Used RIF Installer . | . . Robots Hacked . | . . Non-combat . | . . Combat . | . . Robot Hacks Applied . | . . Relay Couplers Released . | . . Robots Rewired . | . . Allies Hacked . | . . Hacks Repelled . | . . Allies | -11 -10 -------- Run | Scr Mat Total Allies . | . . Largest Group . | . . Highest-Rated Group . | . . Highest-Rated Ally . | . . Total Orders . | . . Ally Attacks . | . . Total Damage . | . . Kills . | . . Allies Corrupted . | . . Allies Melted . | . . Intel | -11 -10 ------- Run | Scr Mat Robot Analysis Total . | . . Derelict Logs Recovered . | . . Drone Launches . | . . Drone Recoveries . | . . Exploration | -11 -10 ------------- Run | Scr Mat Turns Passed 746 | 149 597 Spaces Moved 487 | 75 412 Core 6 | 2 4 Treads . | . . Legs . | . . Wheels 385 | 73 312 Hover 96 | . 96 Flight . | . . Fastest Speed 50 | 50 56 Average Speed 112 | 91 116 Slowest Speed 700 | 100 700 Overloaded Moves . | . . Propulsion Burnouts . | . . Robots Hopped . | . . Cave-ins Triggered . | . . Exploration Rate (%) 27 | 4 51 Regions Visited 1 Branch Regions . Pre-discovered Areas . | . . Known Exits Taken . | . . Unknown Exits Taken 1 | 1 . Scrap Searched . | . . Spaces Dug 3 | . 3 Terrain Destroyed 3 | . 3 Melee . | . . Projectile 3 | . 3 AOE . | . . Terrain Rammed . | . . Walls Destroyed . | . . Machines Disabled . | . . Actions | -11 -10 --------- Run | Scr Mat Total 590 | 108 482 Wait . | . . Move 486 | 74 412 Hop . | . . Pick Up 17 | 4 13 Fast Attach 7 | 5 2 Attach 2 | 2 . Detach . | . . Swap 8 | . 8 Drop 12 | . 12 Fire 50 | 23 27 Melee 8 | . 8 Ram . | . . Kick . | . . Crush . | . . Escape Stasis . | . . Rewire . | . . Trap . | . . Miscellaneous . | . . Route ------- -11/Scrapyard -10/Materials (discovered 2 exits: [*Mat] / [*Min]) History --------- Turn | Location | Event 19 | -11/Scrapyard | Discovered new exit (range 15) 150 | -11/Scrapyard | Entered Materials 300 | -10/Materials | Build established: Mutant 414 | -10/Materials | Discovered new exit (range 7) 561 | -10/Materials | Discovered new exit (range 12) 740 | -10/Materials | Core integrity fell below 50% 745 | -10/Materials | Core integrity fell below 20% 747 | -10/Materials | Destroyed by S-10 Pest with Light Assault Rifle Last Messages --------------- 00598_ Dropped Imp. Terrain Scanner. 00599_ Acquired Hcp. Storage Unit. 00603_ Acquired Imp. Terrain Scanner. 00609_ Acquired 12 matter. 00614_ Acquired Mining Claw. 00671_ Connecting with Terminal... >>Trojan(Botnet) Trojan loaded successfully. Testing... Terminal linked with 4 systems. Awaiting botnet instructions. >>Trojan(Assimilate) Trojan loaded successfully. Testing... System interface override in place. 00719_ Hover Unit destroyed. 00727_ Datajack destroyed. 00733_ Lgt. Ion Engine destroyed. 00735_ Lgt. Cannon destroyed. 00745_ Structural Scanner destroyed. Map ----- +----------------------------------------------------+ | | | | | | | | | ?????????????????????????????????????????? | | ?????????????????????????????????????????? | | ?????????????????????????????????????????? | | ?????????????????????????????????????????? | | ?????????????????????????????????????????? | | ?????????????????????????????????????????? | | ?????????#???????????????????????????????? | | ?????????????????????????????????????????? | | ?????????#####???????????????????????????? | | ?#??????##"""##??????????????????????????? | | ???????##"|||"##?????????????????????????? | | ?#?????#"" ""#?????????????????????????? | | ???????# #?????????????????????????? | | ???????# < #?????????????????????????? | | ???????# ##????????????????????????? | | ???????# #?#???????????????????????? | | ????#???# #???##########?????????????? | | ########## ##???# #?????????????? | | #! # ###### """ "#?????????????? | | # + # """ T#?????????????? | | # | # + """ "#?????????????? | | # ! + @# #?????????????? | | # ## ### # !! #?????????????? | | ########### #?# # !! #?????????????? | | ????#######+### # ! ##????????????? | | ????# ## s # #?????????????? | | ?##?# ##g s##########?????????????? | | ????# # sg #############?????????? | | ????# # % % ???????? | | ????# + T % ???????? | | ????# # ???????? | | ????# # ##/###########????????? | | ?#??# ## ##? ?????????????????? | | ????# ## #? ???#?????????????? | | ????########### ## ?? #??????????+? ???? | | ??????######### +????#???????????? ???? | | ?#????# # ##????????#??????? ???? | | ??????# T ] # ##?? ????#??????? ??? | | ??????# | # #?? ????#?#######? #???? | | ??????#! ! + #?? ?????## ## #???? | | ??????# #% #???????###""" ## #???? | | ##########+#### ###???????#"R #? #???? | | # ## ### ##########""" #? #???? | | # # # # ## #???? | | # !! + # ###+#### ##### | | # !! # "" # %!! # # | +----------------------------------------------------+ Best States ------------- Heat Dissipation 25 Energy Generation 10 Energy Capacity 125 Matter Stores 300 Matter Capacity 300 Sight Range 16 Terrain Scan Range 16 Terrain Scan Density 10 Evasion (%) 53 Item Schematics ----------------- None Robot Schematics ------------------ None Fabricated ------------ Nothing Alien Tech Used ----------------- None Achievements -------------- None Challenges ------------ None Game ------ Seed SwordAluminumScrap Manual? 0 Play Time 00:14:04 Cumulative 14.5 hours Start 2020.10.27 @ 20:34:45 End 2020.10.27 @ 20:47:57 Sessions 1 Manual Loads 0 Difficulty Rogue Special Mode None Game No. 22 Rogue 22 Adventurer 0 Explorer 0 Win Type - Total 0 Types 0/0/0/0/0/0/0/0/0 Lore% 19 Gallery% 20 Achievement% 18 Wizard Run 0 Options --------- ASCII 0 Keyboard 0 Movement Mouse Keybinds 0 Fullscreen 2 Font 24/Smallcaps Map View 76x50 Tactical HUD 1 Map Filters NONE Filters NONE Steam X RUN: 1733af6d-660d-40e6-85ff-f31094dd7eca